[Event "23rd European Women Club Cup 2018"]
[Site "Halkidiki"]
[Date "2018.10.14"]
[Round "3"]
[White "Heinemann, Josefine"]
[Black "Grapsa, Georgia"]
[Result "1/2-1/2"]
[ECO "B90"]
[WhiteElo "2308"]
[BlackElo "2085"]
[Annotator "NA"]
[PlyCount "91"]
[EventDate "2018.10.12"]
[EventType "team-tourn"]
[EventCountry "GRE"]
[SourceTitle "playchess.com"]
[Source "ChessBase"]
[SourceQuality "1"]
[WhiteTeam "Mulhouse"]
[BlackTeam "Thessaloniki"]
[TimeControl "40/5400+30:1800+30"]

1. e4 {[%emt 0:00:00]} c5 {[%emt 0:00:00]} 2. Nf3 {[%emt 0:00:00]} d6 {[%emt 0:00:00]} 3. d4 {[%emt 0:00:00]} Nf6 {[%emt 0:00:00]} 4. Nc3 {[%emt 0:00:00]} cxd4 {[%emt 0:00:00]} 5. Nxd4 {[%emt 0:00:00]} a6 {[%emt 0:00:00]} 6. Be3 {[%emt 0:00:00]} e5 {[%emt 0:00:24]} 7. Nb3 {[%emt 0:00:00]} Be6 {[%emt 0:00:03]} 8. f3 {[%emt 0:00:21]} Nbd7 {[%emt 0:01:20]} 9. Qd2 {[%emt 0:00:10]} b5 {[%emt 0:00:06]} 10. O-O-O {[%emt 0:01:05]} Rc8 {[%emt 0:02:01]} 11. g4 {[%emt 0:04:58]} Nb6 {[%emt 0:01:21]} 12. Qf2 {[%emt 0:04:07]} Nfd7 {[%emt 0:03:35]} 13. Kb1 {[%emt 0:06:39]} Qc7 {[%emt 0:06:54]} 14. Nd5 {[%emt 0:07:25]} Bxd5 {[%emt 0:00:42]} 15. exd5 {[%emt 0:00:05]} Nc4 {[%emt 0:02:49]} 16. Bxc4 {[%emt 0:05:49]} bxc4 {[%emt 0:02:51]} 17. Nc1 {[%emt 0:00:13]} Be7 {[%emt 0:06:28]} 18. Ne2 {[%emt 0:01:38]} O-O {[%emt 0:07:10]} 19. Nc3 {[%emt 0:04:25]} f5 {[%emt 0:03:02]} 20. gxf5 {[%emt 0:01:53]} Rxf5 {[%emt 0:00:19]} 21. Qg2 {[%emt 0:00:40]} Rcf8 {[%emt 0:04:39]} 22. Rdg1 {[%emt 0:03:29]} R8f7 {[%emt 0:01:59]} 23. Bh6 {[%emt 0:05:01]} g6 {[%emt 0:02:15]} 24. h4 {[%emt 0:02:16]} Rh5 {[%emt 0:05:17]} 25. Bg5 {[%emt 0:01:25]} Nb6 {[%emt 0:06:18]} 26. Qg4 {[%emt 0:07:20]} Bxg5 {[%emt 0:05:46]} 27. hxg5 {[%emt 0:00:05]} Rxh1 {[%emt 0:00:02]} 28. Rxh1 {[%emt 0:00:05]} Rf5 {[%emt 0:00:27]} 29. Qh3 {[%emt 0:05:08]} Qe7 {[%emt 0:11:47]} 30. Ne4 {[%emt 0:04:41]} Nxd5 {[%emt 0:03:23]} 31. Rd1 {[%emt 0:00:17]} Qe6 {[%emt 0:03:04]} 32. b3 {[%emt 0:05:39]} Nf4 {[%emt 0:10:00]} 33. Qf1 {[%emt 0:02:08]} d5 {[%emt 0:00:03]} 34. Nf6+ {[%emt 0:00:53]} Kg7 {[%emt 0:00:23]} 35. bxc4 {[%emt 0:01:51]} Qb6+ {[%emt 0:01:22]} 36. Ka1 {[%emt 0:02:27]} Rxg5 {[%emt 0:01:38]} 37. Nxd5 {[%emt 0:01:59]} Qa5 {[%emt 0:03:36]} 38. Qe1 {[%emt 0:02:55]} Qxe1 {[%emt 0:00:52]} 39. Rxe1 {[%emt 0:00:03]} Ne6 {[%emt 0:00:42]} 40. Kb2 {[%emt 0:00:00]} Nd4 {[%emt 0:00:00]} 41. f4 {[%emt 0:05:09]} exf4 {[%emt 0:05:45]} 42. Nxf4 {[%emt 0:01:19]} Rf5 {[%emt 0:02:14]} 43. Re4 {[%emt 0:01:38]} Nc6 {[%emt 0:03:32]} 44. Ne6+ {[%emt 0:01:03]} Kf7 {[%emt 0:01:01]} 45. Nc7 {[%emt 0:00:46]} a5 {[%emt 0:01:20]} 46. Nb5 {[%emt 0:03:21]} 1/2-1/2

[Event "23rd European Women Club Cup 2018"]
[Site "Halkidiki"]
[Date "2018.10.14"]
[Round "3"]
[White "Brunello, Marina"]
[Black "Andolfatto, Maria"]
[Result "1-0"]
[ECO "C50"]
[WhiteElo "2294"]
[BlackElo "2068"]
[Annotator "NA"]
[PlyCount "123"]
[EventDate "2018.10.12"]
[EventType "team-tourn"]
[EventCountry "GRE"]
[SourceTitle "playchess.com"]
[Source "ChessBase"]
[SourceQuality "1"]
[WhiteTeam "Pentole Agnelli"]
[BlackTeam "Banca Alpi Marittime"]
[TimeControl "40/5400+30:1800+30"]

1. e4 {[%emt 0:00:00]} e5 {[%emt 0:00:00]} 2. Bc4 {[%emt 0:05:07]} Nf6 {[%emt 0:05:03]} 3. d3 {[%emt 0:00:19]} Nc6 {[%emt 0:00:25]} 4. Nf3 {[%emt 0:01:53]} Bc5 {[%emt 0:02:54]} 5. O-O {[%emt 0:01:45]} d6 {[%emt 0:01:03]} 6. c3 {[%emt 0:00:31]} h6 {[%emt 0:00:58]} 7. a4 {[%emt 0:00:31]} a5 {[%emt 0:01:27]} 8. Qe2 {[%emt 0:10:42]} O-O {[%emt 0:01:39]} 9. h3 {[%emt 0:01:36]} Bb6 {[%emt 0:02:15]} 10. Na3 {[%emt 0:03:40]} Ne7 {[%emt 0:02:18]} 11. Nh4 {[%emt 0:13:52]} c6 {[%emt 0:05:36]} 12. Ba2 {[%emt 0:02:47]} Qc7 {[%emt 0:12:34]} 13. Nc4 {[%emt 0:07:22]} Ba7 {[%emt 0:01:23]} 14. Kh1 {[%emt 0:00:11]} b5 {[%emt 0:08:34]} 15. axb5 {[%emt 0:16:46]} cxb5 {[%emt 0:00:13]} 16. Ne3 {[%emt 0:00:18]} Be6 {[%emt 0:02:48]} 17. Qf3 {[%emt 0:04:45]} Rad8 {[%emt 0:06:31]} 18. Nef5 {[%emt 0:02:48]} Nxf5 {[%emt 0:03:10]} 19. Nxf5 {[%emt 0:00:05]} Bxf5 {[%emt 0:03:21]} 20. Qxf5 {[%emt 0:00:04]} Nh7 {[%emt 0:04:20]} 21. f4 {[%emt 0:01:40]} Qe7 {[%emt 0:02:08]} 22. Bd5 {[%emt 0:01:48]} Bb6 {[%emt 0:00:59]} 23. fxe5 {[%emt 0:04:47]} dxe5 {[%emt 0:04:28]} 24. c4 {[%emt 0:00:20]} Rd6 {[%emt 0:04:23]} 25. Bd2 {[%emt 0:01:11]} b4 {[%emt 0:00:45]} 26. Qf3 {[%emt 0:01:47]} Nf6 {[%emt 0:01:58]} 27. Be3 {[%emt 0:04:33]} Qa7 {[%emt 0:04:34]} 28. Bxb6 {[%emt 0:02:41]} Qxb6 {[%emt 0:00:12]} 29. Qf2 {[%emt 0:06:28]} Qxf2 {[%emt 0:00:06]} 30. Rxf2 {[%emt 0:00:13]} Ra6 {[%emt 0:00:42]} 31. b3 {[%emt 0:02:31]} Nd7 {[%emt 0:01:52]} 32. Rfa2 {[%emt 0:00:09]} Nc5 {[%emt 0:00:23]} 33. Rxa5 {[%emt 0:00:10]} Rxa5 {[%emt 0:00:05]} 34. Rxa5 {[%emt 0:00:07]} Nxd3 {[%emt 0:03:37]} 35. c5 {[%emt 0:01:39]} Rc8 {[%emt 0:02:17]} 36. c6 {[%emt 0:00:08]} Kh7 {[%emt 0:01:14]} 37. Ra7 {[%emt 0:00:55]} f6 {[%emt 0:01:47]} 38. Rb7 {[%emt 0:01:10]} Kg6 {[%emt 0:06:00]} 39. Kg1 {[%emt 0:00:36]} f5 {[%emt 0:01:25]} 40. exf5+ {[%emt 0:00:00]} Kxf5 {[%emt 0:00:00]} 41. Rxg7 {[%emt 0:04:12]} Nf4 {[%emt 0:12:59]} 42. Bf3 {[%emt 0:01:44]} Ne6 {[%emt 0:00:16]} 43. Rb7 {[%emt 0:04:01]} e4 {[%emt 0:03:30]} 44. Bg4+ {[%emt 0:04:25]} Ke5 {[%emt 0:01:14]} 45. Rxb4 {[%emt 0:00:18]} Rxc6 {[%emt 0:03:08]} 46. Rxe4+ {[%emt 0:00:11]} Kxe4 {[%emt 0:00:16]} 47. Bf3+ {[%emt 0:00:03]} Kf4 {[%emt 0:12:47]} 48. Bxc6 {[%emt 0:00:04]} Nd4 {[%emt 0:00:08]} 49. Bd5 {[%emt 0:00:16]} Kg3 {[%emt 0:00:45]} 50. b4 {[%emt 0:01:30]} h5 {[%emt 0:02:49]} 51. Bc4 {[%emt 0:00:26]} h4 {[%emt 0:01:13]} 52. b5 {[%emt 0:00:09]} Nf5 {[%emt 0:00:30]} 53. b6 {[%emt 0:00:06]} Nd6 {[%emt 0:00:06]} 54. Bd5 {[%emt 0:00:07]} Kf4 {[%emt 0:00:48]} 55. b7 {[%emt 0:00:06]} Nxb7 {[%emt 0:00:10]} 56. Bxb7 {[%emt 0:00:05]} Kg3 {[%emt 0:00:33]} 57. Kf1 {[%emt 0:00:05]} Kf4 {[%emt 0:00:19]} 58. Ke2 {[%emt 0:00:04]} Kf5 {[%emt 0:00:55]} 59. Kf3 {[%emt 0:00:03]} Kg5 {[%emt 0:00:08]} 60. Be4 {[%emt 0:00:04]} Kh5 {[%emt 0:00:21]} 61. Kf4 {[%emt 0:00:07]} Kh6 {[%emt 0:00:07]} 62. Kg4 {[%emt 0:00:04]} 1-0

[Event "23rd European Women Club Cup 2018"]
[Site "Halkidiki"]
[Date "2018.10.14"]
[Round "3"]
[White "Semenova, Elena"]
[Black "Fataliyeva, Ulviyya"]
[Result "1-0"]
[ECO "C03"]
[WhiteElo "2263"]
[BlackElo "2320"]
[Annotator "NA"]
[PlyCount "127"]
[EventDate "2018.10.12"]
[EventType "team-tourn"]
[EventCountry "GRE"]
[SourceTitle "playchess.com"]
[Source "ChessBase"]
[SourceQuality "1"]
[WhiteTeam "SSHOR"]
[BlackTeam "Odlar Yurdu"]
[TimeControl "40/5400+30:1800+30"]

1. e4 {[%emt 0:00:00]} e6 {[%emt 0:00:00]} 2. d4 {[%emt 0:00:00]} d5 {[%emt 0:00:00]} 3. Nd2 {[%emt 0:00:00]} a6 {[%emt 0:00:00]} 4. Ngf3 {[%emt 0:00:13]} c5 {[%emt 0:00:00]} 5. exd5 {[%emt 0:00:15]} exd5 {[%emt 0:00:00]} 6. dxc5 {[%emt 0:00:16]} Bxc5 {[%emt 0:00:00]} 7. Bd3 {[%emt 0:00:10]} Nf6 {[%emt 0:00:19]} 8. Nb3 {[%emt 0:00:49]} Bb6 {[%emt 0:00:09]} 9. Qe2+ {[%emt 0:00:21]} Be6 {[%emt 0:02:47]} 10. Nbd4 {[%emt 0:01:02]} Qe7 {[%emt 0:18:43]} 11. O-O {[%emt 0:04:01]} O-O {[%emt 0:00:44]} 12. Bf4 {[%emt 0:11:21]} Nc6 {[%emt 0:02:12]} 13. c3 {[%emt 0:10:19]} Rfe8 {[%emt 0:02:48]} 14. Rfe1 {[%emt 0:02:00]} Nxd4 {[%emt 0:30:07]} 15. Nxd4 {[%emt 0:05:43]} Bxd4 {[%emt 0:04:27]} 16. cxd4 {[%emt 0:00:07]} Qd7 {[%emt 0:00:13]} 17. Qc2 {[%emt 0:13:28]} Rac8 {[%emt 0:00:49]} 18. Qb1 {[%emt 0:00:46]} h6 {[%emt 0:02:49]} 19. h3 {[%emt 0:02:55]} Qa4 {[%emt 0:07:27]} 20. Qd1 {[%emt 0:02:23]} Qd7 {[%emt 0:05:29]} 21. Re5 {[%emt 0:07:57]} Nh7 {[%emt 0:04:14]} 22. Qh5 {[%emt 0:02:14]} f6 {[%emt 0:02:43]} 23. Re3 {[%emt 0:05:34]} Bf7 {[%emt 0:00:50]} 24. Qf5 {[%emt 0:01:20]} Qxf5 {[%emt 0:03:39]} 25. Rxe8+ {[%emt 0:00:37]} Rxe8 {[%emt 0:00:42]} 26. Bxf5 {[%emt 0:00:04]} Nf8 {[%emt 0:01:21]} 27. Rc1 {[%emt 0:02:56]} Be6 {[%emt 0:00:10]} 28. g4 {[%emt 0:01:46]} g6 {[%emt 0:01:14]} 29. Bd3 {[%emt 0:04:08]} g5 {[%emt 0:00:10]} 30. Bd6 {[%emt 0:03:04]} Rc8 {[%emt 0:00:37]} 31. Re1 {[%emt 0:01:15]} Rc6 {[%emt 0:00:48]} 32. Bc5 {[%emt 0:02:50]} Nd7 {[%emt 0:02:54]} 33. b4 {[%emt 0:00:45]} Nxc5 {[%emt 0:02:08]} 34. bxc5 {[%emt 0:02:16]} Kf7 {[%emt 0:00:48]} 35. Rb1 {[%emt 0:00:33]} Rc7 {[%emt 0:00:29]} 36. Bf5 {[%emt 0:04:12]} Bd7 {[%emt 0:02:33]} 37. Bxd7 {[%emt 0:02:30]} Rxd7 {[%emt 0:00:01]} 38. Rb6 {[%emt 0:01:18]} Kg6 {[%emt 0:03:03]} 39. f3 {[%emt 0:00:29]} Kg7 {[%emt 0:00:56]} 40. Kf2 {[%emt 0:00:00]} Kf7 {[%emt 0:00:00]} 41. a4 {[%emt 0:07:57]} Kg7 {[%emt 0:04:42]} 42. a5 {[%emt 0:00:38]} Kf7 {[%emt 0:00:43]} 43. Kg3 {[%emt 0:06:21]} Kg6 {[%emt 0:03:56]} 44. h4 {[%emt 0:01:23]} gxh4+ {[%emt 0:06:28]} 45. Kxh4 {[%emt 0:00:05]} Kf7 {[%emt 0:01:03]} 46. f4 {[%emt 0:04:01]} Re7 {[%emt 0:02:07]} 47. f5 {[%emt 0:00:43]} Re4 {[%emt 0:01:44]} 48. Rxb7+ {[%emt 0:00:07]} Ke8 {[%emt 0:00:18]} 49. Rb4 {[%emt 0:03:54]} Kd7 {[%emt 0:00:34]} 50. Kh5 {[%emt 0:00:17]} Kc7 {[%emt 0:00:39]} 51. Kg6 {[%emt 0:01:15]} Rxg4+ {[%emt 0:00:12]} 52. Kxf6 {[%emt 0:00:03]} h5 {[%emt 0:06:23]} 53. Ke5 {[%emt 0:01:25]} h4 {[%emt 0:00:21]} 54. Rb6 {[%emt 0:00:53]} Rg1 {[%emt 0:04:20]} 55. Rh6 {[%emt 0:00:29]} Rh1 {[%emt 0:00:05]} 56. Kxd5 {[%emt 0:00:16]} h3 {[%emt 0:00:04]} 57. Rh7+ {[%emt 0:00:24]} Kb8 {[%emt 0:00:16]} 58. Kc6 {[%emt 0:01:47]} h2 {[%emt 0:00:07]} 59. d5 {[%emt 0:00:13]} Rf1 {[%emt 0:00:57]} 60. Rxh2 {[%emt 0:00:29]} Rxf5 {[%emt 0:00:06]} 61. d6 {[%emt 0:00:14]} Rf6 {[%emt 0:00:31]} 62. Rh8+ {[%emt 0:00:36]} Ka7 {[%emt 0:00:05]} 63. Rh7+ {[%emt 0:00:09]} Kb8 {[%emt 0:00:14]} 64. Kb6 {[%emt 0:00:28]} 1-0

[Event "23rd European Women Club Cup 2018"]
[Site "Halkidiki"]
[Date "2018.10.14"]
[Round "3"]
[White "De Rosa, Mariagrazia"]
[Black "Paehtz, Elisabeth"]
[Result "0-1"]
[ECO "C00"]
[WhiteElo "2131"]
[BlackElo "2513"]
[Annotator "ChessBase"]
[PlyCount "50"]
[EventDate "2018.10.12"]
[EventType "team-tourn"]
[EventCountry "GRE"]
[SourceTitle "playchess.com"]
[Source "ChessBase"]
[SourceQuality "1"]
[WhiteTeam "Banca Alpi Marittime"]
[BlackTeam "Pentole Agnelli"]
[TimeControl "40/5400+30:1800+30"]

1. e4 {[%emt 0:00:00]} e6 {[%emt 0:00:00]} 2. f4 {[%emt 0:02:08]} d5 {[%emt 0:00:00]} 3. e5 {[%emt 0:00:11]} c5 {[%emt 0:00:47]} 4. Nf3 {[%emt 0:00:39]} Nc6 {[%emt 0:01:01]} 5. c3 {[%emt 0:13:18]} Nh6 {[%emt 0:04:04]} 6. Bd3 {[%emt 0:05:45]} c4 {[%emt 0:03:18]} 7. Bc2 {[%emt 0:19:26]} Bc5 {[%emt 0:04:03]} 8. Qe2 {[%emt 0:09:57]} a6 {[%emt 0:06:08]} 9. h3 {[%emt 0:02:41]} Nf5 {[%emt 0:05:46]} 10. Bxf5 {[%emt 0:01:21]} exf5 {[%emt 0:00:03]} 11. d4 {[%emt 0:03:58]} cxd3 {[%emt 0:00:02]} 12. Qxd3 {[%emt 0:00:04]} d4 {[%emt 0:03:31]} 13. cxd4 {[%emt 0:08:42]} Nxd4 {[%emt 0:00:04]} 14. Nxd4 {[%emt 0:00:33]} Bxd4 {[%emt 0:07:05]} 15. Nc3 {[%emt 0:01:49]} Be6 {[%emt 0:00:54]} 16. Be3 {[%emt 0:09:13]} Qh4+ {[%emt 0:00:08]} 17. Kd2 {[%emt 0:01:35]} Rd8 {[%emt 0:13:33]} 18. Bxd4 {[%emt 0:12:45]} Qxf4+ {[%emt 0:00:03]} 19. Kc2 {[%emt 0:01:39]} Rxd4 {[%emt 0:00:03]} 20. Ne2 {[%emt 0:01:26]} Rc4+ {[%emt 0:00:18]} 21. Kd1 {[%emt 0:00:33]} Qxe5 {[%emt 0:01:37]} 22. Rc1 {[%emt 0:00:24]} Re4 {[%emt 0:01:12]} 23. Rc2 {[%emt 0:00:54]} O-O {[%emt 0:02:48]} 24. Rf1 {[%emt 0:02:20]} Re3 {[%emt 0:00:37]} 25. Qd2 {[%emt 0:00:19]} Bxa2 {[%emt 0:01:15]} 0-1

[Event "23rd European Women Club Cup 2018"]
[Site "Halkidiki"]
[Date "2018.10.14"]
[Round "3"]
[White "Richard, Emma"]
[Black "Tsivelekidou, Anthoula Elpida"]
[Result "1-0"]
[ECO "C10"]
[WhiteElo "2127"]
[BlackElo "1147"]
[Annotator "NA"]
[PlyCount "63"]
[EventDate "2018.10.12"]
[EventType "team-tourn"]
[EventCountry "GRE"]
[SourceTitle "playchess.com"]
[Source "ChessBase"]
[SourceQuality "1"]
[WhiteTeam "Mulhouse"]
[BlackTeam "Thessaloniki"]
[TimeControl "40/5400+30:1800+30"]

1. e4 {[%emt 0:00:00]} e6 {[%emt 0:00:00]} 2. d4 {[%emt 0:00:00]} d5 {[%emt 0:00:00]} 3. Nd2 {[%emt 0:00:00]} dxe4 {[%emt 0:00:00]} 4. Nxe4 {[%emt 0:00:00]} Bd7 {[%emt 0:00:00]} 5. Nf3 {[%emt 0:00:16]} Bc6 {[%emt 0:00:00]} 6. Bd3 {[%emt 0:01:02]} Nd7 {[%emt 0:00:04]} 7. O-O {[%emt 0:01:08]} Ngf6 {[%emt 0:00:06]} 8. Ng3 {[%emt 0:03:18]} Bxf3 {[%emt 0:03:06]} 9. Qxf3 {[%emt 0:00:16]} c6 {[%emt 0:00:05]} 10. c3 {[%emt 0:05:33]} Bd6 {[%emt 0:03:04]} 11. Re1 {[%emt 0:02:05]} O-O {[%emt 0:01:36]} 12. Bg5 {[%emt 0:03:53]} Qc7 {[%emt 0:02:01]} 13. Ne4 {[%emt 0:16:43]} Bxh2+ {[%emt 0:10:24]} 14. Kh1 {[%emt 0:00:06]} Nxe4 {[%emt 0:00:24]} 15. Qxe4 {[%emt 0:06:24]} g6 {[%emt 0:01:04]} 16. f4 {[%emt 0:02:44]} Bg3 {[%emt 0:12:18]} 17. Re3 {[%emt 0:00:41]} Bf2 {[%emt 0:00:13]} 18. Rf3 {[%emt 0:00:29]} Bxd4 {[%emt 0:00:28]} 19. cxd4 {[%emt 0:00:22]} Qb6 {[%emt 0:03:53]} 20. b3 {[%emt 0:06:26]} Qb4 {[%emt 0:09:06]} 21. Rc1 {[%emt 0:08:58]} a5 {[%emt 0:03:02]} 22. Rh3 {[%emt 0:04:44]} Rfe8 {[%emt 0:02:13]} 23. Rc4 {[%emt 0:02:50]} Qa3 {[%emt 0:01:30]} 24. Rc2 {[%emt 0:02:49]} a4 {[%emt 0:00:40]} 25. Bc4 {[%emt 0:02:14]} Qd6 {[%emt 0:05:23]} 26. bxa4 {[%emt 0:03:00]} Rxa4 {[%emt 0:00:33]} 27. f5 {[%emt 0:01:15]} Raa8 {[%emt 0:05:54]} 28. fxg6 {[%emt 0:02:59]} fxg6 {[%emt 0:02:19]} 29. Rf2 {[%emt 0:01:28]} c5 {[%emt 0:04:35]} 30. Rxh7 {[%emt 0:02:28]} Kxh7 {[%emt 0:01:48]} 31. Rf7+ {[%emt 0:00:06]} Kh8 {[%emt 0:00:09]} 32. Qh4+ {[%emt 0:00:04]} 1-0

[Event "23rd European Women Club Cup 2018"]
[Site "Halkidiki"]
[Date "2018.10.14"]
[Round "3"]
[White "Mar, Karmen"]
[Black "Socko, Monika"]
[Result "0-1"]
[ECO "B17"]
[WhiteElo "2107"]
[BlackElo "2451"]
[Annotator "ChessBase"]
[PlyCount "112"]
[EventDate "2018.10.12"]
[EventType "team-tourn"]
[EventCountry "GRE"]
[SourceTitle "playchess.com"]
[Source "ChessBase"]
[SourceQuality "1"]
[WhiteTeam "Maribor"]
[BlackTeam "Monte-Carlo"]
[TimeControl "40/5400+30:1800+30"]

1. e4 {[%emt 0:00:00]} c6 {[%emt 0:00:00]} 2. d4 {[%emt 0:00:00]} d5 {[%emt 0:00:00]} 3. Nc3 {[%emt 0:00:00]} dxe4 {[%emt 0:00:00]} 4. Nxe4 {[%emt 0:00:00]} Nd7 {[%emt 0:00:00]} 5. Nf3 {[%emt 0:00:25]} Ngf6 {[%emt 0:00:06]} 6. Neg5 {[%emt 0:06:29]} e6 {[%emt 0:01:22]} 7. Bd3 {[%emt 0:00:41]} Bd6 {[%emt 0:00:40]} 8. Qe2 {[%emt 0:00:30]} h6 {[%emt 0:00:24]} 9. Ne4 {[%emt 0:01:13]} Nxe4 {[%emt 0:00:05]} 10. Qxe4 {[%emt 0:00:09]} Qc7 {[%emt 0:00:12]} 11. Bd2 {[%emt 0:10:17]} c5 {[%emt 0:05:31]} 12. dxc5 {[%emt 0:10:53]} Nxc5 {[%emt 0:01:58]} 13. Bb5+ {[%emt 0:00:29]} Bd7 {[%emt 0:04:33]} 14. Bxd7+ {[%emt 0:00:17]} Qxd7 {[%emt 0:02:02]} 15. Qe2 {[%emt 0:08:48]} O-O {[%emt 0:06:20]} 16. O-O {[%emt 0:03:30]} Qa4 {[%emt 0:03:53]} 17. Bc3 {[%emt 0:14:58]} Rfd8 {[%emt 0:05:23]} 18. Rfe1 {[%emt 0:05:35]} Rac8 {[%emt 0:04:07]} 19. Rad1 {[%emt 0:05:58]} Bf8 {[%emt 0:05:20]} 20. b3 {[%emt 0:04:29]} Qa6 {[%emt 0:03:08]} 21. Qxa6 {[%emt 0:05:35]} Nxa6 {[%emt 0:00:16]} 22. Rxd8 {[%emt 0:00:12]} Rxd8 {[%emt 0:00:05]} 23. Bd2 {[%emt 0:03:19]} Nb4 {[%emt 0:03:15]} 24. Bxb4 {[%emt 0:02:39]} Bxb4 {[%emt 0:00:02]} 25. Rc1 {[%emt 0:02:42]} Bc3 {[%emt 0:00:38]} 26. Ne1 {[%emt 0:01:56]} Rc8 {[%emt 0:02:30]} 27. Kf1 {[%emt 0:01:26]} Bd2 {[%emt 0:01:07]} 28. Rd1 {[%emt 0:00:17]} Bxe1 {[%emt 0:00:04]} 29. Kxe1 {[%emt 0:00:08]} Rxc2 {[%emt 0:00:20]} 30. Rd8+ {[%emt 0:00:15]} Kh7 {[%emt 0:00:01]} 31. Rd7 {[%emt 0:00:21]} Rxa2 {[%emt 0:02:58]} 32. Rxb7 {[%emt 0:00:32]} Kg6 {[%emt 0:00:46]} 33. g3 {[%emt 0:05:41]} Kf6 {[%emt 0:00:37]} 34. h4 {[%emt 0:00:28]} h5 {[%emt 0:00:06]} 35. Kf1 {[%emt 0:00:41]} g6 {[%emt 0:00:08]} 36. Kg2 {[%emt 0:00:22]} e5 {[%emt 0:00:20]} 37. Kf3 {[%emt 0:04:12]} Ke6 {[%emt 0:06:58]} 38. b4 {[%emt 0:02:39]} Ra3+ {[%emt 0:03:10]} 39. Kg2 {[%emt 0:00:25]} e4 {[%emt 0:04:08]} 40. Rb5 {[%emt 0:00:00]} Ra2 {[%emt 0:00:00]} 41. Kg1 {[%emt 0:05:16]} f6 {[%emt 0:04:20]} 42. Kf1 {[%emt 0:02:27]} Kd6 {[%emt 0:02:38]} 43. Rb7 {[%emt 0:06:13]} Ke5 {[%emt 0:00:15]} 44. Re7+ {[%emt 0:00:56]} Kf5 {[%emt 0:01:36]} 45. Rf7 {[%emt 0:04:01]} a6 {[%emt 0:04:26]} 46. Kg1 {[%emt 0:03:25]} Rb2 {[%emt 0:03:41]} 47. Ra7 {[%emt 0:01:08]} e3 {[%emt 0:09:18]} 48. fxe3 {[%emt 0:05:29]} Kg4 {[%emt 0:00:18]} 49. Rxa6 {[%emt 0:02:53]} Kxg3 {[%emt 0:00:14]} 50. Rxf6 {[%emt 0:00:29]} Rb1+ {[%emt 0:00:05]} 51. Rf1 {[%emt 0:00:03]} Rxb4 {[%emt 0:00:03]} 52. Re1 {[%emt 0:02:13]} Rg4 {[%emt 0:02:11]} 53. Kf1 {[%emt 0:02:44]} Kf3 {[%emt 0:00:46]} 54. Re2 {[%emt 0:00:34]} Rxh4 {[%emt 0:00:12]} 55. Rf2+ {[%emt 0:00:19]} Kxe3 {[%emt 0:00:16]} 56. Rf6 {[%emt 0:00:20]} Rf4+ {[%emt 0:00:09]} 0-1

[Event "23rd European Women Club Cup 2018"]
[Site "Halkidiki"]
[Date "2018.10.14"]
[Round "3"]
[White "Buzukashvili, Sofia"]
[Black "Babiy, Olga"]
[Result "0-1"]
[ECO "E32"]
[WhiteElo "1936"]
[BlackElo "2310"]
[Annotator "NA"]
[PlyCount "46"]
[EventDate "2018.10.12"]
[EventType "team-tourn"]
[EventCountry "GRE"]
[SourceTitle "playchess.com"]
[Source "ChessBase"]
[SourceQuality "1"]
[WhiteTeam "Beer Sheva"]
[BlackTeam "Kyiv"]
[TimeControl "40/5400+30:1800+30"]

1. d4 {[%emt 0:00:00]} Nf6 {[%emt 0:00:00]} 2. c4 {[%emt 0:00:00]} e6 {[%emt 0:00:00]} 3. Nc3 {[%emt 0:00:02]} Bb4 {[%emt 0:00:00]} 4. Qc2 {[%emt 0:00:25]} O-O {[%emt 0:00:00]} 5. a3 {[%emt 0:00:50]} Bxc3+ {[%emt 0:00:11]} 6. Qxc3 {[%emt 0:00:19]} d6 {[%emt 0:03:29]} 7. Nf3 {[%emt 0:02:02]} b6 {[%emt 0:01:33]} 8. e3 {[%emt 0:02:11]} Bb7 {[%emt 0:00:49]} 9. Be2 {[%emt 0:00:13]} Nbd7 {[%emt 0:01:29]} 10. O-O {[%emt 0:01:09]} Ne4 {[%emt 0:02:46]} 11. Qc2 {[%emt 0:00:37]} f5 {[%emt 0:00:15]} 12. b3 {[%emt 0:02:02]} Rf6 {[%emt 0:10:10]} 13. Rd1 {[%emt 0:12:04]} c5 {[%emt 0:17:55]} 14. d5 {[%emt 0:07:09]} Rh6 {[%emt 0:05:41]} 15. Bb2 {[%emt 0:03:14]} e5 {[%emt 0:06:38]} 16. Bd3 {[%emt 0:05:27]} Ndf6 {[%emt 0:00:50]} 17. Ne1 {[%emt 0:19:29]} Ng4 {[%emt 0:11:24]} 18. Bxe4 {[%emt 0:05:11]} fxe4 {[%emt 0:00:16]} 19. Qxe4 {[%emt 0:00:52]} Qh4 {[%emt 0:00:42]} 20. Nd3 {[%emt 0:07:06]} Qxh2+ {[%emt 0:00:18]} 21. Kf1 {[%emt 0:00:06]} Nf6 {[%emt 0:06:40]} 22. Qf5 {[%emt 0:01:43]} Bc8 {[%emt 0:00:16]} 23. Qg5 {[%emt 0:09:13]} Rg6 {[%emt 0:01:04]} 0-1